bitfinex/quotes_ETHUSD_20240925
["timestamp","ask_amount","ask_price","bid_price","bid_amount"]
[1727244206971,0.7587,2629.4,2629.3,3.80329]
[1727244207281,0.7587,2629.4,2629.3,4.62097508]
[1727244208943,0.7587,2629.4,2629.3,0.81768508]
[1727244212378,1.54954993,2629.4,2629.3,0.81768508]
[1727244212691,1.54954993,2629.4,2629.3,0.81778438]
[1727244212901,0.7587,2629.4,2629.3,0.81778438]
[1727244213101,0.7587,2629.4,2629.3,1.63556777]
[1727244213455,0.7587,2629.4,2629.3,0.81778438]
[1727244213692,1.54954993,2629.4,2629.3,0.81778438]
[1727244213867,0.7587,2629.4,2629.3,0.81778438]
[1727244214076,0.7587,2629.4,2629.1,3.80354]
[1727244214379,0.7587,2629.4,2629.0,11.39196]
[1727244214989,1.54954993,2629.4,2629.0,10.60725]
[1727244215568,1.54954993,2629.4,2629.0,6.80362]
[1727244216601,1.54954993,2629.4,2629.0,10.60726]
[1727244216896,0.7587,2629.4,2629.0,10.60726]
[1727244218007,0.7587,2629.4,2629.0,6.80362]
[1727244218496,0.7587,2629.4,2629.1,3.80357]
[1727244218663,1.54954993,2629.4,2629.1,3.80357]
[1727244219066,0.7587,2629.4,2629.1,3.80357]
[1727244219373,1.54954993,2629.4,2629.1,3.80357]
[1727244219568,0.7587,2629.4,2629.1,3.80357]
[1727244219799,0.7587,2629.4,2629.1,5.23327618]
[1727244219957,0.7587,2629.4,2629.1,5.23321618]
[1727244220158,0.7587,2629.4,2629.2,0.78603512]
[1727244220358,0.7587,2629.4,2629.2,4.58945512]
[1727244220596,0.7587,2629.4,2629.2,3.80342]
[1727244221597,0.79084993,2629.5,2629.3,3.80318]
[1727244221797,1.60854993,2629.6,2629.4,3.80311]
[1727244222000,0.79084993,2629.6,2629.4,3.80311]
[1727244223709,0.79084993,2629.6,2629.5,0.4090683]
[1727244224117,0.79084993,2629.7,2629.5,0.4090683]
[1727244224697,0.79084993,2629.7,2629.4,3.80311]
[1727244225108,0.79084993,2629.7,2629.4,4.79742652]
[1727244225595,0.79084993,2629.6,2629.4,4.79742652]
[1727244225802,0.79084993,2629.7,2629.4,3.80311]
[1727244227307,0.79084993,2629.7,2629.4,7.60617]
[1727244227527,0.79084993,2629.7,2629.5,3.80299]
[1727244227884,0.79084993,2629.7,2629.4,3.80306]
[1727244229800,0.79084993,2629.7,2629.3,4.98260591]
[1727244230016,5.84442789,2629.8,2629.5,3.803]
[1727244230017,0.79084993,2629.6,2629.5,3.803]
[1727244230320,1.60010293,2629.8,2629.6,3.80285]
[1727244231324,1.60010293,2629.8,2629.5,3.80295]
[1727244232019,1.60010293,2629.8,2629.4,3.80302]
[1727244232227,0.79084993,2629.7,2629.4,7.60609]
[1727244232384,1.60010293,2629.8,2629.5,3.803]
[1727244234853,1.60010293,2629.8,2629.4,3.80302]
[1727244235125,5.40268293,2629.8,2629.3,1.17896199]
[1727244235327,5.40268293,2629.8,2629.0,3.0]
[1727244235328,0.7714,2629.5,2629.0,3.79818213]
[1727244235621,0.7714,2629.5,2629.0,7.98278206]
[1727244235622,1.56224993,2629.4,2629.0,7.98278206]
[1727244235828,5.36548993,2629.4,2628.9,7.39]
[1727244236017,0.79084993,2629.3,2628.9,11.19381]
[1727244236217,4.59416993,2629.3,2628.9,7.39]
[1727244236388,0.7714,2629.2,2628.9,7.39]
[1727244236593,0.7714,2629.2,2628.8,3.8039]
[1727244236910,0.7714,2629.2,2628.9,0.78605975]
[1727244237094,0.7714,2629.2,2628.9,4.58991975]
[1727244237291,0.7714,2629.2,2628.8,4.97079234]
[1727244237496,0.7714,2629.2,2628.9,0.78605727]
[1727244237794,0.7714,2629.2,2628.9,4.58990727]
[1727244238018,0.7714,2629.2,2628.9,3.80385]
[1727244238517,0.7714,2629.2,2629.0,3.80364]
[1727244238705,0.7714,2629.2,2628.9,4.98283151]
[1727244238905,0.7714,2629.2,2628.9,9.00909272]
[1727244239843,0.7714,2629.2,2628.9,5.20524272]
[1727244241241,0.7714,2629.2,2628.9,9.00897272]
[1727244241705,0.7714,2629.2,2629.0,3.80367]
[1727244242211,0.7714,2629.2,2629.0,5.10685581]
[1727244243971,4.60979,2629.1,2628.8,0.79818213]
[1727244244111,0.8062,2628.6,2628.1,1.17903072]
[1727244244405,0.79567461,2628.2,2627.7,3.80551]
[1727244244605,5.4067056,2628.3,2627.7,3.8056]
[1727244244842,0.07553097,2628.2,2627.7,3.8056]
[1727244245063,0.07553097,2628.2,2627.5,3.8058]
[1727244245373,6.61387384,2628.3,2627.6,3.80566]
[1727244245544,5.81818824,2628.3,2627.6,3.80566]
[1727244245750,5.81818824,2628.3,2627.7,3.8056]
[1727244247937,3.80491,2628.2,2627.7,3.8056]
[1727244248354,3.80491,2628.2,2627.6,3.0]
[1727244248552,8.57222082,2628.2,2627.6,3.0]
[1727244248764,3.80491,2628.2,2627.7,3.80558]
[1727244249761,3.80491,2628.2,2627.6,4.30318581]
[1727244249946,3.80491,2628.2,2627.6,3.0]
[1727244250148,3.80505,2628.1,2627.6,3.0]
[1727244250371,3.80505,2628.1,2627.6,6.80575]
[1727244250573,3.80505,2628.1,2627.5,3.0]
[1727244250739,0.07553097,2628.0,2627.5,6.80588]
[1727244251071,0.8062,2627.9,2627.5,6.80588]
[1727244251648,0.8062,2627.9,2627.5,10.61168]
[1727244252243,0.8062,2627.9,2627.6,3.80572]
[1727244252462,0.8062,2627.9,2627.5,8.10898581]
[1727244252463,0.8062,2627.9,2627.7,3.8056]
[1727244252770,0.8062,2627.9,2627.5,11.91474581]
[1727244253093,0.8062,2627.9,2627.6,3.80572]
[1727244259937,0.8062,2627.9,2627.5,8.10894581]
[1727244260142,0.8062,2627.9,2627.5,11.91476581]
[1727244260447,0.8062,2627.9,2627.5,8.10894581]
[1727244260650,0.8062,2627.9,2627.5,6.80576]
[1727244261700,0.8062,2627.9,2627.3,3.80609]
[1727244261701,1.647846,2627.9,2627.3,3.80609]
[1727244261835,4.61156,2627.9,2627.3,7.61218]
[1727244262177,0.8062,2627.9,2627.3,3.80609]
[1727244262337,1.267351,2627.9,2627.3,3.80609]
[1727244263166,3.80553,2627.8,2627.3,3.80609]
[1727244265545,3.80553,2627.8,2627.3,3.80608]
[1727244266145,3.80553,2627.8,2627.3,7.61218]
[1727244267047,3.80553,2627.8,2627.3,3.80608]
[1727244268099,0.8022,2627.7,2627.3,3.80608]
[1727244268585,0.8022,2627.7,2627.3,7.61219]
[1727244269574,0.8022,2627.7,2627.3,3.80608]
[1727244269952,0.8022,2627.7,2627.3,7.61218]
[1727244270148,0.8022,2627.7,2627.3,3.80608]
[1727244270695,0.8022,2627.7,2627.3,7.61219]
[1727244270994,0.8022,2627.7,2627.3,7.61217]
[1727244271390,0.8022,2627.7,2627.3,3.80608]
[1727244271598,0.8022,2627.7,2627.3,7.61216]
[1727244272990,0.8022,2627.7,2627.2,4.30318581]
[1727244273194,0.8022,2627.7,2627.4,3.80603]
[1727244274203,0.8022,2627.7,2627.3,3.80615]
[1727244274551,4.68342097,2627.7,2627.1,6.80636]
[1727244274757,0.460773,2627.6,2627.2,3.80625]
[1727244275094,0.8022,2627.7,2627.2,3.80625]
[1727244275309,0.8022,2627.7,2627.2,5.10943581]
[1727244276187,4.60781,2627.7,2627.1,6.80636]
[1727244276387,4.60781,2627.7,2627.2,3.80632]
[1727244276801,5.449144,2627.7,2627.2,3.80632]
[1727244277121,1.643534,2627.7,2627.3,3.80618]
[1727244277289,0.8022,2627.7,2627.3,3.80618]
[1727244277816,4.60783,2627.7,2627.2,1.30318581]
[1727244278425,3.80537,2627.9,2626.5,3.80724]
[1727244278426,0.7907,2627.1,2626.5,3.80724]
[1727244278592,0.86623097,2627.1,2626.5,3.80724]
[1727244278780,0.86623097,2627.1,2626.5,4.20328879]
[1727244278979,3.80667,2627.0,2626.5,4.20328879]
[1727244279291,3.80667,2627.0,2626.4,3.80747]
[1727244279806,3.80694,2626.8,2626.3,4.62467]
[1727244280383,3.80694,2626.8,2626.4,3.0]
[1727244281189,3.80694,2626.8,2626.3,0.8171]
[1727244281383,0.7907,2626.7,2626.2,4.30318581]
[1727244282432,0.7907,2626.7,2626.2,8.11087581]
[1727244283194,0.7907,2626.7,2626.2,4.30318581]
[1727244283487,0.7907,2626.7,2626.4,3.0]
[1727244284120,0.7907,2626.7,2626.2,4.30318581]
[1727244284280,0.7907,2626.7,2626.2,8.11088581]
[1727244284485,0.7907,2626.7,2626.2,8.51760674]
[1727244285492,0.7907,2626.7,2626.2,8.11088581]
[1727244287321,0.7907,2626.7,2626.4,3.0]
[1727244289247,3.80694,2626.8,2626.4,3.0]
[1727244294023,4.61213,2626.9,2626.4,6.80746]
[1727244294322,3.80652,2627.1,2626.6,5.14819881]
[1727244294323,4.61182,2627.1,2626.6,5.14819881]
[1727244294474,4.61182,2627.1,2626.6,1.34103881]
[1727244294475,0.8053,2627.1,2626.6,1.34103881]
[1727244294638,4.61185,2627.1,2626.6,5.14814881]
[1727244294960,4.61185,2627.1,2626.6,3.844963]
[1727244295362,1.647112,2627.1,2626.6,0.037853]
[1727244295598,3.80685,2626.9,2626.6,0.037853]
[1727244297168,3.80696,2626.8,2626.6,0.037853]
[1727244298251,3.80685,2626.9,2626.6,0.037853]
[1727244298959,3.80692,2626.8,2626.6,0.037853]
[1727244299494,3.80582,2626.8,2626.6,0.037853]
[1727244299864,3.80677,2626.9,2626.6,0.037853]
[1727244300260,7.61362,2626.9,2626.6,0.037853]
[1727244300597,3.80677,2626.9,2626.6,0.037853]
[1727244300975,4.61183,2627.1,2626.6,0.037853]
[1727244301293,3.80668,2627.0,2626.6,0.037853]
[1727244301446,3.80678,2626.9,2626.6,0.037853]
[1727244302353,3.80702,2626.8,2626.6,0.037853]
[1727244303295,3.80678,2626.9,2626.6,0.037853]
[1727244304454,3.80691,2626.8,2626.6,0.037853]
[1727244305804,3.80705,2626.7,2626.6,0.037853]
[1727244306621,7.6139,2626.8,2626.6,0.037853]
[1727244306909,4.1951541,2626.8,2626.6,0.037853]
[1727244307065,3.80691,2626.8,2626.6,0.037853]
[1727244307267,3.80673,2627.0,2626.6,0.037853]
[1727244307491,3.80678,2626.9,2626.6,0.037853]
[1727244309886,3.80692,2626.8,2626.6,0.037853]
[1727244310607,3.80705,2626.7,2626.6,0.037853]
[1727244310998,3.80691,2626.8,2626.6,0.037853]
[1727244311365,7.6139,2626.8,2626.6,0.037853]
[1727244311573,3.80691,2626.8,2626.6,0.037853]
[1727244312511,3.80705,2626.7,2626.6,0.037853]
[1727244312885,4.5759991,2626.7,2626.6,0.037853]
[1727244313299,3.96182536,2627.8,2627.4,0.55]
[1727244313611,3.88051097,2628.2,2627.5,0.7592]
[1727244313918,0.7749,2628.1,2627.5,0.7592]
[1727244314282,0.07553097,2628.0,2627.5,0.7592]
[1727244315546,1.8337321,2627.9,2627.3,3.0]
[1727244316400,0.07553097,2627.8,2627.2,3.80632]
[1727244316582,0.19092631,2627.8,2627.3,3.80614]
[1727244316783,0.07553097,2628.0,2627.2,3.80632]
[1727244317621,0.07553097,2628.0,2627.2,7.61255]
[1727244317802,0.07553097,2628.0,2627.3,3.80618]
[1727244317994,0.07553097,2628.0,2627.2,3.80623]
[1727244318194,0.54107707,2628.0,2627.2,7.61247]
[1727244318401,0.54107707,2628.0,2627.2,3.80623]
[1727244319121,0.54107707,2628.0,2627.3,3.80608]
[1727244319423,0.54107707,2628.0,2627.4,3.806]
[1727244319656,0.51210071,2627.9,2627.4,3.806]
[1727244321291,0.51210071,2627.9,2627.4,3.80596]
[1727244321481,0.51210071,2627.9,2627.4,3.80595]
[1727244321690,0.07553097,2628.0,2627.5,3.80579]
[1727244323783,0.07553097,2628.0,2627.6,3.80565]
[1727244326208,0.07553097,2628.0,2627.6,7.61132]
[1727244326520,0.54106507,2628.0,2627.7,3.8056]
[1727244326721,0.4655341,2628.0,2627.7,3.8056]
[1727244327027,0.85043097,2628.1,2627.7,3.8056]
[1727244328412,0.7749,2628.1,2627.7,3.8056]
[1727244328722,0.85043097,2628.1,2627.7,3.8056]
[1727244329522,0.7749,2628.1,2627.9,3.8053]
[1727244329740,0.773,2628.6,2628.3,3.80472]
[1727244329906,1.18906093,2628.9,2628.4,3.80459]
[1727244329907,0.773,2628.9,2628.4,3.80459]
[1727244330084,0.773,2628.9,2628.6,3.80429]
[1727244330933,0.773,2628.9,2628.6,7.60852]
[1727244331228,0.773,2628.9,2628.6,3.80423]
[1727244331393,0.8233,2628.8,2628.7,3.80416]
[1727244331589,0.8233,2628.8,2628.6,3.80423]
[1727244332297,0.03889936,2628.7,2628.6,3.80423]
[1727244332690,0.8233,2628.8,2628.6,3.80423]
[1727244333007,0.03935848,2628.7,2628.6,3.80423]
[1727244333398,0.8233,2628.8,2628.5,3.80443]
[1727244333729,0.03935848,2628.7,2628.5,3.80443]
[1727244333932,0.8233,2628.8,2628.5,3.80443]
[1727244334292,0.03938267,2628.7,2628.5,3.80443]
[1727244334708,0.84853097,2628.9,2628.5,3.80443]
[1727244335219,0.03950069,2628.8,2628.5,3.80443]
[1727244335727,0.03950069,2628.8,2628.6,3.80429]
[1727244337597,0.03950069,2628.8,2628.6,7.6085]
[1727244337803,0.03950069,2628.8,2628.6,3.80421]
[1727244338193,0.03950069,2628.8,2628.6,7.60843]
[1727244338741,0.03950069,2628.8,2628.6,3.80421]
[1727244339640,0.03950069,2628.8,2628.7,3.80416]
[1727244339814,0.7613,2629.1,2628.8,3.804]
[1727244340139,0.7613,2629.3,2628.7,0.7511]
[1727244340429,0.7613,2629.3,2629.0,7.60728]
[1727244340795,0.7613,2629.3,2629.1,3.80357]
[1727244341001,0.7613,2629.6,2629.2,3.80342]
[1727244341620,0.7613,2629.6,2629.2,3.80335]
[1727244341817,0.0407409,2629.5,2629.3,3.80318]
[1727244343296,0.0407409,2629.5,2629.3,3.8032]
[1727244343831,3.91595397,2629.8,2629.4,3.80307]
[1727244343832,0.037853,2629.8,2629.4,3.80307]
[1727244344042,0.037853,2629.8,2629.5,3.803]
[1727244344427,0.037853,2629.8,2629.4,3.80307]
[1727244345761,3.840423,2629.8,2629.2,3.80332]
[1727244346032,0.037853,2629.8,2629.3,3.80315]
[1727244346336,0.037853,2629.8,2629.4,3.80312]
[1727244348214,0.037853,2629.8,2629.3,0.7511]
[1727244348417,0.037853,2629.8,2629.3,4.55434]
[1727244349440,0.037853,2629.8,2629.3,5.4281362]
[1727244350503,0.037853,2629.8,2629.4,3.80311]
[1727244351010,0.037853,2629.8,2629.5,3.80299]
[1727244351210,0.037853,2629.8,2629.6,3.80277]
[1727244351504,0.037853,2629.8,2629.5,3.80297]
[1727244351710,0.037853,2629.8,2629.6,0.38790279]
[1727244351906,0.037853,2629.8,2629.7,3.87876177]
[1727244352229,0.037853,2629.8,2629.7,8.06592274]
[1727244352434,0.037853,2629.8,2629.7,7.98987097]
[1727244353147,0.037853,2629.8,2629.7,10.98987097]
[1727244353440,0.037853,2629.8,2629.7,9.68357138]
[1727244353650,0.037853,2629.8,2629.7,9.13357138]
[1727244354549,0.037853,2629.8,2629.7,9.68357138]
[1727244355108,0.037853,2629.8,2629.7,9.13357138]
[1727244355513,0.037853,2629.8,2629.7,1.51806138]
[1727244355710,0.037853,2629.8,2629.6,0.38790279]
[1727244357127,3.840433,2629.8,2629.6,0.38790279]
[1727244357621,3.840433,2629.8,2629.3,7.6770762]
[1727244358753,7.643083,2629.8,2629.3,7.6770762]
[1727244359058,3.840433,2629.8,2629.3,7.6770762]
[1727244359368,7.643073,2629.8,2629.3,7.6770762]
[1727244359921,7.643073,2629.8,2629.3,3.8737962]
[1727244359922,3.840433,2629.8,2629.3,3.8737962]
[1727244360240,3.80272,2629.7,2629.3,3.0]
[1727244360443,7.643123,2629.8,2629.3,3.0]
[1727244360672,7.643103,2629.8,2629.3,3.0]
[1727244361324,3.840433,2629.8,2629.3,3.0]
[1727244361527,7.643113,2629.8,2629.3,3.0]
[1727244361761,7.643103,2629.8,2629.3,3.0]
[1727244361966,3.840433,2629.8,2629.3,3.0]
[1727244362860,3.80272,2629.7,2629.4,0.761615]
[1727244363456,3.80287,2629.6,2629.4,0.761615]
[1727244363632,4.58507,2629.6,2629.2,0.8128]
[1727244364735,8.404913,2629.8,2629.2,4.61623]
[1727244365144,3.80275,2629.7,2629.2,4.61623]
[1727244365338,3.80275,2629.7,2629.3,1.141972]
[1727244366070,3.80273,2629.7,2629.3,1.141972]
[1727244366441,3.80289,2629.6,2629.3,1.141972]
[1727244366636,3.803,2629.5,2629.3,1.141972]
[1727244367333,3.80273,2629.7,2629.1,3.0]
[1727244367535,3.80301,2629.5,2629.0,0.812]
[1727244368475,0.83723097,2629.4,2628.8,3.95556032]
[1727244368692,3.8033,2629.3,2628.8,9.17888932]
[1727244370388,3.80344,2629.2,2628.8,1.82496932]
[1727244370679,7.60671,2629.3,2628.8,0.40556032]
[1727244371372,3.8033,2629.3,2628.8,0.40556032]
[1727244371580,3.80344,2629.2,2628.8,0.40556032]
[1727244373058,3.8033,2629.3,2628.8,1.20773135]
[1727244373258,7.60668,2629.3,2628.8,1.20773135]
[1727244373667,3.8033,2629.3,2628.8,1.20773135]
[1727244373847,7.60668,2629.3,2628.8,1.20773135]
[1727244375377,7.60668,2629.3,2628.8,1.61425126]
[1727244375946,7.6067,2629.3,2628.8,1.61425126]
[1727244377249,7.6067,2629.3,2628.8,1.20773135]
[1727244377472,3.8033,2629.3,2628.8,0.80217103]
[1727244377674,7.60668,2629.3,2628.8,1.20919943]
[1727244377880,3.8033,2629.3,2628.8,1.20919943]
[1727244378282,3.8033,2629.3,2628.8,0.4070284]
[1727244379148,3.8033,2629.3,2628.8,4.2110284]
[1727244379490,3.8033,2629.3,2628.8,0.4070284]
[1727244379491,0.07553097,2629.3,2628.8,0.4070284]
[1727244379780,0.7591,2629.0,2628.7,0.4070284]
[1727244379943,0.7591,2629.0,2628.5,0.4070284]
[1727244380143,0.7591,2629.0,2628.6,0.40736817]
[1727244380390,3.80388,2628.9,2628.5,3.40736233]
[1727244380549,3.80388,2628.9,2628.6,0.40736377]
[1727244380754,3.80388,2628.9,2628.5,3.0]
[1727244381059,3.80388,2628.9,2628.6,0.40736074]
[1727244381275,0.7591,2629.0,2628.6,0.40736074]
[1727244381276,4.56286,2629.0,2628.6,0.40736074]
[1727244381586,3.80366,2629.1,2628.6,4.21165074]
[1727244381789,3.80344,2629.2,2628.8,0.7514]
[1727244381965,4.56247,2629.3,2628.8,0.7514]
[1727244382589,8.36586,2629.3,2628.8,0.7514]
[1727244382799,3.80347,2629.2,2628.8,0.7514]
[1727244382958,3.80347,2629.2,2628.8,1.15889483]
[1727244383155,3.80347,2629.2,2628.8,0.7514]
[1727244383812,4.56247,2629.3,2628.8,0.7514]
[1727244383971,8.36589,2629.3,2628.8,1.70505721]
[1727244385193,8.36589,2629.3,2628.9,0.40782644]
[1727244385194,3.80347,2629.2,2628.9,0.40782644]
[1727244385394,3.80347,2629.2,2628.8,0.7514]
[1727244385692,3.80347,2629.2,2628.9,0.40782335]
[1727244385889,3.80347,2629.2,2628.8,0.7514]
[1727244385890,4.56247,2629.3,2628.8,4.55537]
[1727244386092,4.56247,2629.3,2628.9,0.40782634]
[1727244386294,4.56247,2629.3,2628.8,1.66017313]
[1727244386596,4.56247,2629.3,2628.9,0.40786584]
[1727244386764,4.56247,2629.3,2628.8,1.66017313]
[1727244386958,4.56247,2629.3,2628.9,0.40786604]
[1727244387155,4.56247,2629.3,2628.8,1.66017313]
[1727244387396,3.80346,2629.2,2628.8,1.66017313]
[1727244387694,3.80346,2629.2,2628.9,0.4078616]
[1727244388281,3.80346,2629.2,2628.9,0.81571639]
[1727244388586,3.80346,2629.2,2628.9,0.4078616]
[1727244388781,4.56242,2629.3,2628.9,0.4078616]
[1727244389088,3.80325,2629.4,2628.9,4.79894307]
[1727244389434,7.6065,2629.4,2628.9,4.79894307]
[1727244389715,3.80325,2629.4,2628.9,4.79894307]
[1727244389918,3.80325,2629.4,2629.0,0.64591162]
[1727244390886,3.80323,2629.4,2629.0,0.64591162]
[1727244391081,3.80323,2629.4,2628.9,4.79894307]
[1727244392032,7.60647,2629.4,2628.9,4.79894307]
[1727244393782,3.80323,2629.4,2628.9,0.99507307]
[1727244394319,7.60648,2629.4,2628.9,0.99507307]
[1727244395324,3.80323,2629.4,2628.9,0.99507307]
[1727244395619,3.80294,2629.6,2629.2,0.825]
[1727244399536,3.80294,2629.6,2629.3,0.40787689]
[1727244400213,3.80294,2629.6,2629.2,0.825]
[1727244400394,3.80294,2629.6,2629.3,0.462849]
[1727244404005,0.04011181,2629.5,2629.3,0.462849]
[1727244411224,0.04011181,2629.5,2629.2,0.825]
[1727244411620,0.11564278,2629.5,2628.8,1.5912701]
[1727244411820,3.80367,2629.1,2628.8,0.7967]
[1727244412056,3.80374,2629.0,2628.8,0.7967]
[1727244412259,3.84339718,2629.0,2628.8,0.7967]
[1727244412637,0.03965718,2629.0,2628.8,0.7967]
[1727244422153,3.84338718,2629.0,2628.8,0.7967]
[1727244422861,3.80387,2628.9,2628.6,3.7967]
[1727244423054,3.84330172,2628.9,2628.6,3.7967]
[1727244424080,0.03943172,2628.9,2628.6,3.7967]
[1727244424285,7.60737,2629.1,2628.6,3.7967]
[1727244424452,0.03924738,2628.8,2628.6,3.7967]
[1727244424648,3.80372,2629.0,2628.6,5.14694764]
[1727244424987,0.03912938,2628.7,2628.6,5.14694764]
[1727244425595,3.80372,2629.0,2628.6,5.14694764]
[1727244425824,0.03912938,2628.7,2628.6,3.7967]
[1727244426267,3.80372,2629.0,2628.6,3.7967]
[1727244426467,0.03912938,2628.7,2628.6,3.7967]
[1727244426664,3.80372,2629.0,2628.6,3.7967]
[1727244426899,0.03912938,2628.7,2628.6,0.7967]
[1727244427105,3.80397,2628.9,2628.6,0.7967]
[1727244427313,0.03912938,2628.7,2628.6,0.7967]
[1727244427465,7.60757,2629.0,2628.6,0.7967]
[1727244427664,0.03912938,2628.7,2628.6,0.7967]
[1727244427868,7.60757,2629.0,2628.6,0.7967]
[1727244427869,3.80372,2629.0,2628.6,0.7967]
[1727244428106,7.60755,2629.0,2628.6,0.7967]
[1727244428299,0.03936537,2628.9,2628.6,0.7967]
[1727244428511,3.84327537,2628.9,2628.6,0.7967]
[1727244430409,3.91880634,2628.9,2628.4,0.752]
[1727244430593,3.8043,2628.6,2628.3,1.63468697]
[1727244430793,3.8043,2628.6,2628.3,0.38018187]
[1727244431116,0.03886143,2628.5,2628.3,0.38018187]
[1727244432713,4.62464,2628.8,2628.3,4.18489187]
[1727244432871,0.0386918,2628.4,2628.3,2.12360668]
[1727244433205,3.80416,2628.7,2628.3,2.12360668]
[1727244433418,0.0386918,2628.4,2628.3,2.12360668]
[1727244433574,3.80416,2628.7,2628.3,2.12360668]
[1727244433913,0.03891555,2628.6,2628.3,2.12360668]
[1727244434428,3.80454,2628.5,2628.3,0.38018187]
[1727244434570,3.80459,2628.4,2628.3,0.38018187]
[1727244434775,3.84329658,2628.4,2628.3,0.38018187]
[1727244435115,0.03870658,2628.4,2628.3,0.38018187]
[1727244436673,3.80431,2628.6,2628.3,0.38018187]
[1727244437709,3.80452,2628.5,2628.3,0.38018187]
[1727244438012,3.80452,2628.5,2628.0,7.55715]
[1727244438197,3.80452,2628.5,2628.0,8.82362063]
[1727244438400,0.03870658,2628.4,2628.0,8.82362063]
[1727244439378,0.03870658,2628.4,2628.1,3.80502]
[1727244439886,0.03858856,2628.3,2628.1,3.80502]
[1727244440206,3.8043,2628.6,2628.1,3.80502]
[1727244440412,0.03847052,2628.2,2628.1,3.80502]
[1727244440614,3.8043,2628.6,2628.1,5.19812469]
[1727244441098,0.0388246,2628.5,2628.1,5.19812469]
[1727244443419,0.0388246,2628.5,2628.1,3.80502]
[1727244444282,3.80445,2628.5,2628.0,7.55715]
[1727244444486,0.03834479,2628.4,2628.0,7.55715]
[1727244445023,0.82514479,2628.4,2628.0,3.0]
[1727244445181,3.80481,2628.3,2627.8,7.58284]
[1727244445381,3.80481,2628.3,2627.8,4.58284]
[1727244445618,3.80503,2628.1,2627.8,0.7774]
[1727244445920,0.03798341,2628.0,2627.6,11.97311]
[1727244446218,0.03798341,2628.0,2627.6,4.58311]
[1727244446784,0.03798341,2628.0,2627.6,4.58307]
[1727244447002,0.03798341,2628.0,2627.6,8.38873]
[1727244447315,0.03798341,2628.0,2627.6,4.58306]
[1727244447683,3.84315341,2628.0,2627.6,4.58306]
[1727244449692,3.84315341,2628.0,2627.6,0.7774]
[1727244450705,3.84315341,2628.0,2627.5,6.80587]
[1727244450886,3.84315341,2628.0,2627.5,3.0]
[1727244451090,3.80539,2627.9,2627.5,3.0]
[1727244451318,3.84208161,2627.9,2627.4,4.58332]
[1727244451623,4.59236,2627.8,2627.3,3.0]
[1727244451825,3.80569,2627.7,2627.3,3.0]
[1727244453080,3.80527,2628.0,2627.3,8.303453]
[1727244453310,4.59148,2628.4,2627.9,4.58264]
[1727244453517,11.26439,2628.6,2627.9,4.58264]
[1727244453518,12.05119,2628.6,2628.0,5.10749626]
[1727244453825,4.59119,2628.6,2628.0,5.10749626]
[1727244454693,4.59119,2628.6,2628.0,8.91257626]
[1727244454911,4.59119,2628.6,2628.0,5.10741626]
[1727244455126,3.80445,2628.5,2628.0,6.07643589]
[1727244455418,3.83883503,2628.5,2628.0,6.07643589]
[1727244455621,0.03438503,2628.5,2628.2,1.30233626]
[1727244455929,7.46,2629.0,2628.4,4.30233626]
[1727244456219,11.26381,2629.0,2628.4,8.10682626]
[1727244456425,11.26381,2629.0,2628.4,6.80449]
[1727244456720,11.26381,2629.0,2628.5,3.80443]
[1727244458725,3.80381,2629.0,2628.5,3.80443]
[1727244459017,0.03599955,2628.9,2628.5,3.80443]
[1727244459420,3.83987955,2628.9,2628.4,8.23049794]
[1727244459718,3.83987955,2628.9,2628.5,4.21214652]
[1727244460021,3.83987955,2628.9,2628.5,3.80445]
[1727244460600,0.03599955,2628.9,2628.5,3.80445]
[1727244460929,4.65912097,2629.1,2628.5,3.80445]
[1727244460930,3.80376,2629.0,2628.5,5.15606147]
[1727244461081,0.03588157,2628.8,2628.5,5.15606147]
[1727244461510,3.80376,2629.0,2628.5,5.15606147]
[1727244461808,0.03576357,2628.7,2628.5,5.15606147]
[1727244462008,3.80376,2629.0,2628.6,0.81560615]
[1727244462590,0.03599955,2628.9,2628.6,0.81560615]
[1727244462924,0.03599955,2628.9,2628.5,3.80445]
[1727244463127,3.80402,2628.8,2628.4,3.0]
[1727244463348,3.80438,2628.6,2628.2,0.65240776]
[1727244463546,3.8045,2628.5,2628.0,11.84765357]
[1727244463708,0.81564933,2628.5,2628.0,0.65254357]
[1727244463903,0.81564933,2628.5,2627.7,3.80553]
[1727244463904,3.80497,2628.2,2627.8,0.65254357]
[1727244464216,3.80497,2628.2,2627.7,3.80549]
[1727244464419,0.0352772,2628.1,2627.6,1.48124357]
[1727244464627,3.8403072,2628.1,2627.6,5.90211736]
[1727244465143,3.8403072,2628.1,2627.6,6.55475043]
[1727244465314,3.8403072,2628.1,2627.6,5.28704307]
[1727244465524,4.58509,2628.0,2627.5,4.45846307]
[1727244465824,4.62024915,2628.0,2627.5,3.80583]
[1727244466018,4.62024915,2628.0,2627.5,4.949894]
[1727244468111,4.62024915,2628.0,2627.5,5.60253226]
[1727244469934,4.62024915,2628.0,2627.5,4.949894]
[1727244470122,4.62024915,2628.0,2627.5,5.6025361]
[1727244470454,0.81505915,2628.0,2627.5,5.6025361]
[1727244470603,0.81505915,2628.0,2627.5,9.4083261]
[1727244470817,0.81505915,2628.0,2627.5,4.949854]
[1727244471018,0.81505915,2628.0,2627.5,5.60251856]
[1727244471547,4.62023915,2628.0,2627.5,5.60251856]
[1727244471747,4.62023915,2628.0,2627.5,4.45845456]
[1727244472620,4.62023915,2628.0,2627.5,3.80579]
[1727244472824,4.62023915,2628.0,2627.5,4.45852831]
[1727244473062,8.42549915,2628.0,2627.5,4.45852831]
[1727244473351,4.62023915,2628.0,2627.5,4.45852831]
[1727244474451,0.81505915,2628.0,2627.5,4.45852831]
[1727244474657,0.81505915,2628.0,2627.6,3.80573]
[1727244474831,0.81505915,2628.0,2627.6,3.80572]
[1727244475231,0.81505915,2628.0,2627.6,4.45845831]
[1727244475542,0.03515915,2628.0,2627.6,4.45845831]
[1727244475741,4.56726,2628.2,2627.6,0.65273831]
[1727244475947,0.03486269,2627.9,2627.7,3.80557]